Cogmind - Beta 16 --- EXPLORER MODE // 2025.12.24 @ 15:20:51 // AFD2019/Pay2Buy Player: newo Result: Self-destructed Performance ------------- Evolutions (7) 3500 Regions Visited (15) 3000 Robots Destroyed (394) 1970 Value Destroyed (19114) 19114 Prototype IDs (20) 400 Alien Tech Used (0) 0 Bonus (5672) 5672 TOTAL SCORE: 33656 Bonus ------- High Alert Combat Kills 2421 Follower Combat Kills 1524 Entered Garrisons 600 Used RIF Installer 1500 Friendly Fire -373 Cogmind --------- Core Integrity 1241/1300 Matter 27/300 Energy 550/550 System Corruption 1% Temperature Cool (99) Movement Treading (240) Ox1 Location -3/Research Parts ------- > --- POWER (2) -------- Reinforced Antimatter Reactor Reinforced Antimatter Reactor > --- PROPULSION (4) --- Improved Heavy Treads High-density Centrium Heavy Treads > --- UTILITY (12) ----- Power Amplifier Advanced Cryofiber Web Advanced Coolant Injector Experimental Signal Interpreter Experimental Core Analyzer Advanced Particle Charger Layered Heavy Armor Plating Advanced Shield Generator Improved Hacking Suite Advanced System Shield > --- WEAPON (4) ------- Enhanced Quantum Rifle Heavy Neutron Cannon Enhanced Nova Cannon Point Singularity Launcher > --- INVENTORY (10) --- Light Quantum Reactor IFF Parser Thermal Barrier Experimental Shield Generator Improved Hacking Suite Enhanced Hardcell Cannon Micro-nuke Launcher Peak State ------------ > --- POWER ------------ Reinforced Antimatter Reactor Reinforced Antimatter Reactor > --- PROPULSION ------- Improved Heavy Treads High-density Centrium Heavy Treads > --- UTILITY ---------- Power Amplifier Advanced Cryofiber Web Advanced Coolant Injector Advanced Sensor Array Experimental Signal Interpreter Experimental Core Analyzer Advanced Particle Charger Layered Heavy Armor Plating Advanced Shield Generator Improved Hacking Suite Advanced System Shield > --- WEAPON ----------- Enhanced Quantum Rifle Heavy Neutron Cannon Enhanced Nova Cannon Point Singularity Launcher > --- INVENTORY -------- Light Quantum Reactor IFF Parser Thermal Barrier Experimental Shield Generator Improved Hacking Suite Enhanced Hardcell Cannon Micro-nuke Launcher [Rating: 167] Favorites ----------- Power Reinforced Antimatter Reactor Engine Heavy Ion Engine Reactor Reinforced Antimatter Reactor Propulsion Spiked Medium Treads Treads Spiked Medium Treads Utility Advanced Signal Interpreter Device Advanced Sensor Array Storage Large Matter Pod Processor Advanced Signal Interpreter Hackware Makeshift Hacking Suite Protection Layered Medium Armor Plating Weapon Cooled Plasma Cannon Energy Gun Advanced Plasma Rifle Energy Cannon Cooled Plasma Cannon Ballistic Gun Railgun Ballistic Cannon Flak Cannon Launcher Micro-nuke Launcher Build | -11 -10 -9 -8 -7 -7 -7 -7 -6 -6 -6 -5 -5 -5 -4 -3 ------- Run | Yrd Mat Mat Mat Fac Gar Fac Gar Fac Was Fac Fac Gar Fac Fac Res Slots Evolved 15 | . 1 2 2 2 . . . 2 . . 2 . . 2 2 Power 1 | . . . . 1 . . . . . . . . . . . Propulsion 2 | . . . . . . . . 1 . . . . . 1 . Utility 10 | . 1 2 2 1 . . . . . . 1 . . 1 2 Weapon 2 | . . . . . . . . 1 . . 1 . . . . Parts Attached 44 | . . 1 8 4 3 2 6 3 . . 3 4 5 2 3 Power 6 | . . . 2 . 1 1 . . . . 1 . 1 . . Engine 5 | . . . 2 . 1 1 . . . . 1 . . . . Core . | . . . . . . . . . . . . . . . . Reactor 1 | . . . . . . . . . . . . . 1 . . Propulsion 6 | . . . . 2 . . 2 1 . . . . 1 . . Treads 6 | . . . . 2 . . 2 1 . . . . 1 . . Leg . | . . . . . . . . . . . . . . . . Wheel . | . . . . . . . . . . . . . . . . Hover . | . . . . . . . . . . . . . . . . Flight . | . . . . . . . . . . . . . . . . Utility 15 | . . 1 3 . 1 1 3 1 . . 1 1 2 . 1 Device 11 | . . 1 2 . . 1 2 1 . . 1 . 2 . 1 Storage . | . . . . . . . . . . . . . . . . Processor . | . . . . . . . . . . . . . . . . Hackware . | . . . . . . . . . . . . . . . . Protection 4 | . . . 1 . 1 . 1 . . . . 1 . . . Artifact . | . . . . . . . . . . . . . . . . Weapon 17 | . . . 3 2 1 . 1 1 . . 1 3 1 2 2 Energy Gun 4 | . . . . . . . . . . . . 2 1 1 . Energy Cannon 8 | . . . 2 2 . . 1 1 . . 1 . . 1 . Ballistic Gun 1 | . . . . . . . . . . . . 1 . . . Ballistic Cannon 2 | . . . 1 . . . . . . . . . . . 1 Launcher 2 | . . . . . 1 . . . . . . . . . 1 Special Weapon . | . . . . . . . . . . . . . . . . Impact Weapon . | . . . . . . . . . . . . . . . . Slashing Weapon . | . . . . . . . . . . . . . . . . Piercing Weapon . | . . . . . . . . . . . . . . . . Special Melee Weapon . | . . . . . . . . . . . . . . . . Unidentified Prototypes . | . . . . . . . . . . . . . . . . Parts Lost 40 | . . 1 3 . 3 4 2 1 . . 2 9 10 . 5 Power 5 | . . . 1 . . 2 . . . . . 2 . . . Propulsion 5 | . . . . . . . . . . . . 2 2 . 1 Utility 23 | . . 1 2 . 3 2 1 1 . . 1 3 6 . 3 Weapon 7 | . . . . . . . 1 . . . 1 2 2 . 1 Highest Loss Streak 6 | . . 1 2 . 1 2 1 1 . . 1 6 4 . 3 To Critical Strikes 3 | . . . . . . . . . . . . 1 . . 2 Average Backups 6 | . 1 4 3 4 8 7 5 5 6 9 8 5 2 5 7 Power . | . . 1 1 2 2 . . 1 1 1 . . . . 1 Propulsion . | . . . . . . . . . . . . . . . . Utility 1 | . . 2 1 1 2 1 . . 1 2 2 1 . 1 4 Weapon 3 | . . 1 1 1 3 6 4 4 4 5 5 3 2 2 1 Tool/Special . | . . . . . . . . . . . . . . . . Unused Backups 16 | . 1 . . . 2 . 2 . . . 3 1 . 1 6 Power 1 | . . . . . . . . . . . . . . . 1 Propulsion 4 | . 1 . . . 1 . . . . . 1 . . 1 . Utility 11 | . . . . . 1 . 2 . . . 2 1 . . 5 Weapon . | . . . . . . . . . . . . . . . . Tool/Special . | . . . . . . . . . . . . . . . . Average Slot Usage (%) 94 | . 93 100 99 97 91 91 98 99 100 100 98 93 88 85 85 Engine 9 | . 12 10 8 14 13 13 14 12 12 12 11 3 . . . Reactor 2 | . . . . . . . . . . . . 7 10 10 9 Treads 14 | . 25 20 16 14 14 14 13 17 18 18 16 12 9 10 9 Device 19 | . 12 20 25 21 14 20 21 18 18 18 16 18 23 25 28 Storage 2 | . 5 10 8 7 7 . . . . . . . . . . Processor 6 | . . 10 8 7 7 7 7 6 6 6 5 5 5 5 6 Hackware 8 | . . . 1 6 7 6 7 8 12 12 14 16 10 10 9 Protection 11 | . 12 10 14 11 13 14 19 15 12 12 11 6 5 5 4 Energy Gun 3 | . . . . . . . . . . . . 9 14 13 6 Energy Cannon 13 | . 25 20 14 13 13 13 13 18 17 18 21 9 5 6 8 Peak Build Rating 167 | 14 16 20 33 60 65 68 68 81 81 84 104 116 117 143 167 Average Rating 77 | 13 14 19 30 54 62 65 66 78 80 83 97 108 113 135 157 On Entrance 65 | . 14 16 20 33 56 65 58 68 81 81 84 98 115 112 143 Avg Prop Armor Cover (%) . | . . . . . . . . . . . . . . . . Naked Turns . | . . . . . . . . . . . . . . . . Heaviest Build 127 | 24 27 29 43 66 73 72 63 70 64 64 74 90 97 111 127 Greatest Support 165 | 40 40 40 40 60 60 60 60 84 84 84 84 100 100 145 165 Greatest Overweight (x) 1 | . . . 1 1 1 1 1 . . . . . 1 . 1 Average Overweight (x) . | . . . . . . . 1 . . . . . . . . Largest Inventory Capacity 10 | 10 10 10 10 10 10 10 10 10 10 10 10 10 10 10 10 Average Capacity 10 | 10 10 10 10 10 10 10 10 10 10 10 10 10 10 10 10 Most Carried 10 | . 5 4 4 7 10 10 10 6 6 10 10 8 7 10 9 Average Carried 6 | . 2 4 3 4 8 7 5 5 6 9 8 5 2 5 7 Final Capacity 10 | 10 10 10 10 10 10 10 10 10 10 10 10 10 10 10 10 Final Carried 10 | . 5 4 4 6 10 7 7 6 6 10 8 5 3 10 7 Class Distribution -------------------- 57% | Hacker-Mutant 27% | Hacker-Tank 15% | Wizard-Tank Dominant Class ---------------- Hacker-Mutant | -10/Materials Hacker-Mutant | -9/Materials Hacker-Mutant | -8/Materials Hacker-Mutant | -7/Factory Hacker-Mutant | -7/Garrison Hacker-Mutant | -7/Factory Hacker-Mutant | -7/Garrison Hacker-Tank | -6/Factory Hacker-Tank | -6/Waste Hacker-Tank | -6/Factory Wizard-Tank | -5/Factory Wizard-Tank | -5/Garrison Hacker-Tank | -5/Factory Hacker-Tank | -4/Factory Hacker-Tank | -3/Research Resources | -11 -10 -9 -8 -7 -7 -7 -7 -6 -6 -6 -5 -5 -5 -4 -3 ----------- Run | Yrd Mat Mat Mat Fac Gar Fac Gar Fac Was Fac Fac Gar Fac Fac Res Matter Collected 1863 | . 222 138 214 72 96 131 150 61 69 . 64 298 331 17 . Remotely . | . . . . . . . . . . . . . . . . Salvage Created 18210 | . 402 1535 787 940 1773 1430 1326 196 1416 307 2061 2002 2444 925 666 Parts . | . . . . . . . . . . . . . . . . Haulers Intercepted 3 | . . . . 1 . 1 . . . . . . . . 1 Recyclers Shooed . | . . . . . . . . . . . . . . . . Parts Field Recycled . | . . . . . . . . . . . . . . . . Retrieved Matter . | . . . . . . . . . . . . . . . . Parts Self-Destructed . | . . . . . . . . . . . . . . . . Prevented . | . . . . . . . . . . . . . . . . Parts Restored . | . . . . . . . . . . . . . . . . Kills | -11 -10 -9 -8 -7 -7 -7 -7 -6 -6 -6 -5 -5 -5 -4 -3 ------- Run | Yrd Mat Mat Mat Fac Gar Fac Gar Fac Was Fac Fac Gar Fac Fac Res Combat Hostiles Destroyed 301 | . 11 33 17 15 33 24 29 3 5 2 33 37 33 14 12 Guns 42 | . . . . . . . . . . . . 11 26 4 1 Cannons 229 | . 11 33 17 13 31 22 26 3 2 2 30 18 4 8 9 AOE 16 | . . . . . . 1 1 . 1 . 1 6 3 1 2 Classes Destroyed 21 | . 3 2 5 5 . 2 . . 1 . . 2 1 . . Worker 25 | . . . 1 5 . 1 . . . 4 1 . 9 3 1 Builder 19 | . . . . 5 . 2 . . . . . . 8 . 4 Tunneler 3 | . . 1 . . . . . . . . . . 2 . . Hauler 3 | . . . . 1 . 1 . . . . . . . . 1 Recycler 7 | . . . . . . 2 . . . 1 . . 3 . 1 Mechanic 1 | . . . 1 . . . . . . . . . . . . Operator 6 | . . . . 2 . 1 . . . . . . . 3 . Watcher 27 | . 1 4 3 2 . 4 . . . 1 2 1 7 1 1 Swarmer 55 | . 2 3 3 . 5 2 13 . . . 3 10 9 3 2 Cutter 6 | . . . . . . . . . . . . 6 . . . Saboteur 1 | . . . . . . . . . . . . . 1 . . Grunt 133 | . 9 23 9 11 9 13 10 2 . 2 20 9 11 3 2 Brawler 11 | . . . 2 . 2 . . . . . 1 2 4 . . Duelist 9 | . . . . 2 3 . . . . . . 1 3 . . Protector 2 | . . . 1 . . 1 . . . . . . . . . Sentry 27 | . . 7 1 . 9 3 1 1 . . . 2 . 2 1 Specialist 1 | . . . . . . . . . . . . 1 . . . Hunter 26 | . . . 1 1 2 2 2 . . . 5 1 2 4 6 Programmer 23 | . . . . 1 3 3 3 . . . 4 3 3 2 1 Behemoth 2 | . . . . . . . . . . . . 2 . . . Compactor 5 | . . . . . . . . . 5 . . . . . . Wasp 1 | . . . . . . . . . . 1 . . . . . Infiltrator 1 | . . . . . . 1 . . . . . . . . . Best Kill Streak 16 | . 4 7 6 16 7 5 6 1 2 6 5 8 16 7 8 Combat Bots Only 8 | . 4 6 4 4 7 5 6 1 2 1 5 8 8 5 5 Max Kills in Single Turn 5 | . 1 2 2 3 2 4 2 1 1 5 1 2 5 2 4 Gunslinging . | . . . . . . . . . . . . . . . . Exploded 2 | . . . . . . 1 1 . 1 . 1 2 2 1 2 Melee . | . . . . . . . . . . . . . . . . Uniques/NPCs Destroyed . | . . . . . . . . . . . . . . . . Combat | -11 -10 -9 -8 -7 -7 -7 -7 -6 -6 -6 -5 -5 -5 -4 -3 -------- Run | Yrd Mat Mat Mat Fac Gar Fac Gar Fac Was Fac Fac Gar Fac Fac Res Hostile Shots Fired 1647 | . 28 82 103 53 336 128 154 12 . 3 210 185 116 98 139 Missed 545 | . 9 22 35 21 126 48 48 4 . . 67 56 34 37 38 Hits 1102 | . 19 60 68 32 210 80 106 8 . 3 143 129 82 61 101 Melee 46 | . . . 4 3 11 . . . . . . 13 15 . . Projectile 1056 | . 19 60 64 29 199 80 106 8 . 3 143 116 67 61 101 AOE 2 | . . . . . . . . . . . . 2 . . . Critical Strikes 46 | . . 1 2 4 4 2 4 . . . 7 7 7 3 5 Part Disruptions 3 | . . . . . . . . . . . . 1 . 1 1 Damage Taken 9035 | . 135 416 550 263 928 885 686 32 13 58 1207 1399 1053 593 817 Core 914 | . 22 34 27 42 40 197 50 . . 12 74 240 87 30 59 Absorbed by Shields 2821 | . . . 131 104 400 288 302 14 5 24 411 341 239 237 325 Ignored by Resistances 7035 | . 83 270 416 220 873 492 604 30 11 49 1017 1038 751 498 683 Regen/Repaired (Parts) 222 | . . . . . . . . . 86 2 134 . . . . Core Remaining (%) 85 | 100 91 91 95 . . . 53 . . 98 . . 59 97 . Volleys Fired 747 | . 21 58 45 55 120 81 78 8 13 10 63 77 60 34 24 Largest 4 | . 2 2 2 2 2 2 2 3 3 3 4 4 4 4 4 Hottest 383 | . 136 136 136 136 125 125 125 201 226 201 286 355 378 383 383 Shots Fired 1957 | . 42 116 91 110 240 161 157 24 38 30 240 281 224 118 85 Gun 406 | . . . . . . . . . . . . 137 166 77 26 Cannon 1533 | . 42 116 91 110 240 159 156 24 35 30 240 136 58 41 55 Launcher 18 | . . . . . . 2 1 . 3 . . 8 . . 4 Special . | . . . . . . . . . . . . . . . . Kinetic 73 | . . . 18 2 . . . . . . . 11 28 . 14 Thermal 1749 | . 42 116 73 108 240 159 125 16 27 20 180 262 196 118 67 Explosive 18 | . . . . . . 2 1 . 3 . . 8 . . 4 Electromagnetic 117 | . . . . . . . 31 8 8 10 60 . . . . Robot Hit Streak 51 | . 13 51 30 45 28 25 21 21 22 9 31 43 50 22 10 Robot Miss Streak 5 | . 1 1 3 1 2 5 1 . 1 2 2 3 3 1 2 Penetration Max 1 | . . . . . . . . . . . . . 1 . . Secondary Targets 2 | . . . . . . . . . . . . . 2 . . Max Gunslinging Chain 1 | . . . . . . . . . . . . . 1 . . Shots Hit Robots 1209 | . 30 86 77 81 131 81 77 14 31 8 152 186 141 64 50 Core Hits 620 | . 14 42 60 34 49 50 33 7 9 12 56 79 92 50 33 Critical Kills 11 | . . . . 1 1 1 1 . 2 . 2 1 2 . . Critical Parts Destroyed 6 | . . . . . . . . . . . . 5 1 . . Critical Strikes 25 | . . . . 1 1 1 1 . 2 . 2 10 4 3 . Burn 7 | . . . . . . . . . . . . 3 1 3 . Meltdown 8 | . . . . 1 1 1 1 . 2 . 2 . . . . Destroy 10 | . . . . . . . . . . . . 7 3 . . Melee Attacks . | . . . . . . . . . . . . . . . . Impact . | . . . . . . . . . . . . . . . . Slashing . | . . . . . . . . . . . . . . . . Piercing . | . . . . . . . . . . . . . . . . Sneak Attacks . | . . . . . . . . . . . . . . . . Combat Hostiles . | . . . . . . . . . . . . . . . . Follow-up Attacks . | . . . . . . . . . . . . . . . . Damage Inflicted 45295 | . 619 1866 1709 3607 4334 3489 2540 460 1331 866 5260 6789 6115 3052 3258 Guns 8023 | . . . . . . . . . . . . 2480 3428 1332 783 Cannons 29549 | . 619 1866 1709 2241 4334 2769 2498 460 711 331 4978 3161 1188 842 1842 Explosions 7670 | . . . . 1359 . 720 42 . 620 535 282 1148 1457 874 633 Melee . | . . . . . . . . . . . . . . . . Ramming 53 | . . . . 7 . . . . . . . . 42 4 . Kinetic 1186 | . . . 378 . . . . . . . . 91 341 . 376 Thermal 36463 | . 619 1866 1331 2241 4334 2981 2221 284 691 727 3349 5550 5254 2740 2275 Explosive 4940 | . . . . 1359 . 508 . . 620 . 220 1148 478 . 607 Electromagnetic 2653 | . . . . . . . 319 176 20 139 1691 . . 308 . Impact . | . . . . . . . . . . . . . . . . Slashing . | . . . . . . . . . . . . . . . . Piercing . | . . . . . . . . . . . . . . . . Highest Corruption 16 | . . . 1 . 4 9 11 1 1 6 4 7 16 . 1 Average Corruption 4 | . . . 1 . 2 4 6 1 1 5 1 6 12 . 1 Corruption Purged 5 | . . . . . . . 5 . . . . . . . . Corruption Blocked . | . . . . . . . . . . . . . . . . Effects 277 | . . . 6 . 30 43 59 2 3 10 15 40 69 . . Message Errors 59 | . . . 1 . 7 11 15 1 1 3 3 10 7 . . Matter Fused 66 | . . . 3 . 7 10 11 . . 1 5 11 18 . . Heat Flow Errors 41 | . . . . . 7 5 9 . 1 1 3 5 10 . . Energy Discharges 42 | . . . . . 5 5 7 . . 4 1 6 14 . . Parts Rejected 3 | . . . 1 . . . 2 . . . . . . . . Parts Fused 2 | . . . . . . . 1 . . . . 1 . . . Data Loss (minor) 29 | . . . . . 2 7 7 1 . . 1 3 8 . . Data Loss (major) 8 | . . . . . 1 2 3 . . . . 1 1 . . Misfires 11 | . . . 1 . 1 1 2 . 1 . . 2 3 . . Alerts 9 | . . . . . . . 1 . . 1 1 . 6 . . Weapon Failures 7 | . . . . . . 2 1 . . . 1 1 2 . . Overload Shots 6 | . . . . . . . . . 3 . . 3 . . . Effects 2 | . . . . . . . . . 1 . . 1 . . . Energy Bleed 1 | . . . . . . . . . 1 . . . . . . Heat Surge 1 | . . . . . . . . . . . . 1 . . . Overflow Damage 1465 | . . 6 . 513 25 92 39 . 6 97 63 77 410 58 79 Projectiles 595 | . . 6 . 188 25 62 39 . 6 . 63 66 40 21 79 Explosions 870 | . . . . 325 . 30 . . . 97 . 11 370 37 . Melee . | . . . . . . . . . . . . . . . . Knockbacks 18 | . . . 14 . . . . . . . . . . . 4 Impact . | . . . . . . . . . . . . . . . . Kinetic 16 | . . . 13 . . . . . . . . . . . 3 Secondary 2 | . . . 1 . . . . . . . . . . . 1 Self-Inflicted Damage 392 | . . . . . . 113 41 . . . . 33 140 65 . Shots 13 | . . . . . . 3 1 . . . . 1 4 4 . Rammed 7 | . . . . 1 . 1 . . . . . . 4 1 . Targets Rammed 9 | . . . . 1 . 1 . . . . . . 6 1 . Kicked . | . . . . . . . . . . . . . . . . Crushed 2 | . . . . . . . . . . . . . 2 . . Highest Temperature 531 | . 150 111 135 205 240 251 259 138 267 178 531 467 344 . 268 Average Temperature 85 | . 43 25 27 41 39 68 53 48 115 52 204 156 130 . 152 Received Heat Transfer 2434 | . 120 252 296 188 278 291 153 18 . 12 268 189 247 102 20 Effects 31 | . . . . . . 1 . . . . 27 . 2 . 1 Shutdowns 5 | . . . . . . . . . . . 5 . . . . Energy Bleed 4 | . . . . . . . . . . . 3 . . . 1 Interference 12 | . . . . . . 1 . . . . 9 . 2 . . Short Circuit 1 | . . . . . . . . . . . 1 . . . . Damage (minor) 1 | . . . . . . . . . . . 1 . . . . Damage (major) 8 | . . . . . . . . . . . 8 . . . . Siege Activations . | . . . . . . . . . . . . . . . . Martial Activations . | . . . . . . . . . . . . . . . . Shielding Activations . | . . . . . . . . . . . . . . . . Robots Disrupted . | . . . . . . . . . . . . . . . . Combat Hostiles . | . . . . . . . . . . . . . . . . Robots Corrupted . | . . . . . . . . . . . . . . . . Combat Hostiles . | . . . . . . . . . . . . . . . . Parts Fried . | . . . . . . . . . . . . . . . . Impact Corruptions . | . . . . . . . . . . . . . . . . Robots Melted 14 | . . . . 2 2 1 3 . 2 . 2 1 . 1 . Combat Hostiles 13 | . . . . 2 2 1 2 . 2 . 2 1 . 1 . Parts Melted 13 | . . . . 3 6 . 2 . . . . 1 1 . . Heat Transferred 49305 | . 1110 3367 2290 3630 6494 4225 3400 385 917 724 4227 7773 6292 3148 1323 Parts Sabotaged . | . . . . . . . . . . . . . . . . Parts Stolen . | . . . . . . . . . . . . . . . . Parts Stripped . | . . . . . . . . . . . . . . . . Power Chain Reactions 4 | . . . . . . . 1 . . . . . 2 . 1 Alert | -11 -10 -9 -8 -7 -7 -7 -7 -6 -6 -6 -5 -5 -5 -4 -3 ------- Run | Yrd Mat Mat Mat Fac Gar Fac Gar Fac Was Fac Fac Gar Fac Fac Res Maximum Alert Level 5 | . . 1 1 1 5 3 4 2 . 2 2 4 3 1 1 Low Security (%) 29 | 100 100 91 84 75 6 . 1 . 100 21 17 . . 94 91 Level 1 15 | . . 8 15 24 8 4 20 . . 45 48 20 9 5 8 Level 2 28 | . . . . . 12 86 12 100 . 32 33 14 78 . . Level 3 10 | . . . . . 24 8 25 . . . . 24 12 . . Level 4 12 | . . . . . 31 . 40 . . . . 40 . . . Level 5 2 | . . . . . 17 . . . . . . . . . . High Security . | . . . . . . . . . . . . . . . . Max Security . | . . . . . . . . . . . . . . . . Peak Influence 1917 | . 99 251 249 252 1917 747 1589 672 127 430 561 1337 785 225 249 Initial 747 | . . 4 8 25 76 747 172 619 127 . 135 229 521 126 42 Average 526 | . 41 95 153 92 1016 577 897 596 31 307 332 837 567 92 58 Influence Increases 13390 | . 295 882 636 571 1871 1118 1437 221 20 763 1701 1238 1459 754 424 Destroy 0b10 Robot/C 6760 | . 220 660 320 300 680 540 620 140 . 340 1000 760 660 280 240 Destroy 0b10 Robot/NC 520 | . 5 25 30 75 5 65 10 . . 40 30 15 145 35 40 Destroy Leader 1234 | . 52 168 86 76 30 152 50 30 . 72 198 60 134 72 54 Allied During Kill 296 | . . . . . 4 9 8 . . 132 141 2 . . . Trap Triggered on 0b10 70 | . . . . . . . . . . . . . . 70 . Successful Hack 135 | . 13 19 20 15 14 18 8 20 . . 6 2 . . . Disable Machine 572 | . 4 8 . 76 12 128 16 24 . 72 52 4 92 84 . Anti-Garrison Action 1850 | . . . 150 . 900 . 500 . . . . 150 150 . . Destroy Structure 1698 | . 1 2 . 29 211 206 150 7 20 107 274 155 278 168 90 Lose Combat Pursuer 255 | . . . 30 . 15 . 75 . . . . 90 . 45 . Influence Decreases 13151 | . 280 868 587 506 97 2715 168 1280 550 385 1653 327 2446 995 294 Entered New Map 4390 | . . 11 21 53 67 1170 148 970 403 . 243 197 816 224 67 Time Decay 7446 | . 280 754 536 453 . 1485 . 300 147 285 1230 . 1230 569 177 Lost Part 400 | . . 10 30 . 30 40 20 10 . . 20 90 100 . 50 Lost Ally 320 | . . . . . . 20 . . . 100 160 40 . . . Purge Threat 595 | . . 93 . . . . . . . . . . 300 202 . Squads Dispatched 62 | . 2 5 3 5 . 9 . 3 . 3 10 . 10 4 8 Investigation 23 | . 2 5 1 1 . 4 . 2 . 1 4 . 2 . 1 Extermination 12 | . . . . 1 . 3 . . . . 3 . 2 2 1 Reinforcement 17 | . . . 1 3 . 1 . . . 2 1 . 3 2 4 Assault 6 | . . . 1 . . 1 . 1 . . . . 3 . . Garrison 4 | . . . . . . . . . . . 2 . . . 2 Intercept . | . . . . . . . . . . . . . . . . Searches Triggered . | . . . . . . . . . . . . . . . . Construction Impeded 7 | . . . . 1 . 1 . . . 1 . . 1 1 2 Haulers Reinforced 2 | . . . . . . . . . . 1 . . . . 1 Active Scanning Responses . | . . . . . . . . . . . . . . . . Cargo Convoy Interrupts . | . . . . . . . . . . . . . . . . Stealth | -11 -10 -9 -8 -7 -7 -7 -7 -6 -6 -6 -5 -5 -5 -4 -3 --------- Run | Yrd Mat Mat Mat Fac Gar Fac Gar Fac Was Fac Fac Gar Fac Fac Res Distress Signals 17 | . 1 2 2 . . 2 . . . 3 1 . 2 1 3 Communications Jammed . | . . . . . . . . . . . . . . . . Distress Signals . | . . . . . . . . . . . . . . . . Times Spotted 416 | . 13 35 31 19 34 40 34 6 5 13 51 44 43 26 22 Peak Tracking Total 8 | . 5 5 6 3 4 6 6 3 3 2 5 8 5 6 6 Tactical Retreats 10 | . . . 2 . 1 . 2 . . . . 4 . 1 . Traps | -11 -10 -9 -8 -7 -7 -7 -7 -6 -6 -6 -5 -5 -5 -4 -3 ------- Run | Yrd Mat Mat Mat Fac Gar Fac Gar Fac Was Fac Fac Gar Fac Fac Res Traps Triggered 40 | . . . 1 . 18 . 7 1 . 2 3 2 6 . . Indirectly . | . . . . . . . . . . . . . . . . Trap Hack Attempts . | . . . . . . . . . . . . . . . . Triggered . | . . . . . . . . . . . . . . . . Disarmed 4 | . . 4 . . . . . . . . . . . . . Reprogrammed 12 | . . . . . . . . . . . . . . 12 . Reused 7 | . . . . . . . . . . . . . . 7 . Traps Extracted . | . . . . . . . . . . . . . . . . Installed . | . . . . . . . . . . . . . . . . Triggered 7 | . . . . . . . . . . . . . . 7 . Machines | -11 -10 -9 -8 -7 -7 -7 -7 -6 -6 -6 -5 -5 -5 -4 -3 ---------- Run | Yrd Mat Mat Mat Fac Gar Fac Gar Fac Was Fac Fac Gar Fac Fac Res Machines Disabled 162 | . 1 3 1 19 10 32 11 6 . 18 13 3 24 21 . Max in Single Turn 14 | . 1 1 1 4 1 14 2 2 . 4 3 1 9 9 . Garrison Access 3 | . . . 1 . . . . . . . . . 2 . . Garrison Relay 9 | . . . . . 5 . 3 . . . . 1 . . . Phase Generator 2 | . . . . . 1 . 1 . . . . . . . . Machines Repaired . | . . . . . . . . . . . . . . . . Machines Dismantled . | . . . . . . . . . . . . . . . . Machines Sabotaged . | . . . . . . . . . . . . . . . . Overloaded Fab Kills . | . . . . . . . . . . . . . . . . Hacking | -11 -10 -9 -8 -7 -7 -7 -7 -6 -6 -6 -5 -5 -5 -4 -3 --------- Run | Yrd Mat Mat Mat Fac Gar Fac Gar Fac Was Fac Fac Gar Fac Fac Res Machines Accessed 52 | . 5 6 4 3 3 4 3 2 . 3 9 1 6 2 1 Terminals 40 | . 5 5 2 1 3 3 3 1 . 2 8 1 4 2 . Fabricators . | . . . . . . . . . . . . . . . . Repair Stations . | . . . . . . . . . . . . . . . . Recycling Units . | . . . . . . . . . . . . . . . . Scanalyzers 7 | . . 1 1 1 . . . 1 . 1 . . 1 . 1 Garrison Access 5 | . . . 1 1 . 1 . . . . 1 . 1 . . Total Hacks 172 | . 19 26 13 6 8 10 5 9 . 7 37 1 13 14 4 Successful 133 | . 15 17 12 5 3 5 3 8 . 7 34 1 11 11 1 Failed 39 | . 4 9 1 1 5 5 2 1 . . 3 . 2 3 3 Catastrophic 3 | . . 2 . . . 1 . . . . . . . . . Database Lockouts . | . . . . . . . . . . . . . . . . Manual . | . . . . . . . . . . . . . . . . Terminals 145 | . 19 24 9 3 8 8 5 5 . 6 36 1 7 14 . Fabricators . | . . . . . . . . . . . . . . . . Repair Stations . | . . . . . . . . . . . . . . . . Recycling Units . | . . . . . . . . . . . . . . . . Scanalyzers 19 | . . 2 2 2 . . . 4 . 1 . . 4 . 4 Garrison Access 8 | . . . 2 1 . 2 . . . . 1 . 2 . . Terminal Hacks 109 | . 15 15 8 2 3 3 3 4 . 6 33 1 5 11 . Record 55 | . 11 5 5 . . 1 . . . 5 26 . . 2 . Part Schematic 1 | . . . . . . 1 . . . . . . . . . Prototype ID Bank 2 | . 1 1 . . . . . . . . . . . . . Open Door 2 | . . . . . 1 . 1 . . . . . . . . Open DSF 4 | . . . . . . . . . . 1 1 . 2 . . Level Access Points 1 | . . . . . . . . 1 . . . . . . . Branch Access Points 2 | . . . . . . . . . . . 1 . 1 . . Emergency Access Points 8 | . 1 1 1 . 1 . 1 . . . 2 1 . . . Machine Index 2 | . . . . . . . . 1 . . 1 . . . . Terminal Index 1 | . . . . . . . . . . . . . . 1 . Scanalyzer Index 2 | . . 1 1 . . . . . . . . . . . . Alert Level 1 | . . . . . . . . 1 . . . . . . . Unreport Threat 7 | . . 2 . . . . . . . . . . 2 3 . Locate Traps 5 | . 1 1 . . . . . 1 . . 1 . . 1 . Disarm Traps 1 | . . 1 . . . . . . . . . . . . . Reprogram Traps 3 | . . . . . . . . . . . . . . 3 . Dispatch Records 3 | . 1 1 . 1 . . . . . . . . . . . Reinforcement Status 1 | . . 1 . . . . . . . . . . . . . Assault Status 1 | . . . . . . . . . . . . . . 1 . Recall Investigation 1 | . . . 1 . . . . . . . . . . . . Recall Reinforcements 1 | . . 1 . . . . . . . . . . . . . Zone Layout 3 | . . . . 1 . 1 . . . . 1 . . . . Garrison Registry 1 | . . . . . . . 1 . . . . . . . . Security Stations 1 | . . . . . 1 . . . . . . . . . . Fabricator Hacks . | . . . . . . . . . . . . . . . . Repair Station Hacks . | . . . . . . . . . . . . . . . . Recycling Unit Hacks . | . . . . . . . . . . . . . . . . Scanalyzer 16 | . . 2 2 2 . . . 4 . 1 . . 4 . 1 Retrieve Study 16 | . . 2 2 2 . . . 4 . 1 . . 4 . 1 Garrison Access Hacks 8 | . . . 2 1 . 2 . . . . 1 . 2 . . Unlock Access 4 | . . . 1 1 . 1 . . . . 1 . . . . Seal Access 1 | . . . . . . . . . . . . . 1 . . Coupler Status 3 | . . . 1 . . 1 . . . . . . 1 . . Unauthorized Hacks . | . . . . . . . . . . . . . . . . Terminals . | . . . . . . . . . . . . . . . . Fabricators . | . . . . . . . . . . . . . . . . Repair Stations . | . . . . . . . . . . . . . . . . Recycling Units . | . . . . . . . . . . . . . . . . Scanalyzers . | . . . . . . . . . . . . . . . . Garrison Access . | . . . . . . . . . . . . . . . . Data Cores Recovered 4 | . . . . . . 1 . . . . 1 . . 2 . Used 2 | . . . . . . 1 . . . . . . . 1 . Hacking Detections 37 | . 5 6 2 1 2 3 2 2 . 2 9 . 2 . 1 Full Trace Events 27 | . 4 5 1 1 2 3 1 2 . 1 4 . 2 . 1 Feedback Events 3 | . . . . . 1 . . 1 . . . . 1 . . Corruption 3 | . . . . . 1 . . 1 . . . . 1 . . Feedback Blocked . | . . . . . . . . . . . . . . . . Robot Schematics Acquired . | . . . . . . . . . . . . . . . . Robots Built . | . . . . . . . . . . . . . . . . Authchips . | . . . . . . . . . . . . . . . . Time . | . . . . . . . . . . . . . . . . Total Robot Build Rating . | . . . . . . . . . . . . . . . . Part Schematics Acquired 1 | . . . . . . 1 . . . . . . . . . Parts Built . | . . . . . . . . . . . . . . . . Authchips . | . . . . . . . . . . . . . . . . Time . | . . . . . . . . . . . . . . . . Total Part Build Rating . | . . . . . . . . . . . . . . . . Part Studies Acquired 14 | . . 2 1 1 . . . 4 . 1 . . 4 . 1 Parts Repaired . | . . . . . . . . . . . . . . . . Time . | . . . . . . . . . . . . . . . . Parts Recycled . | . . . . . . . . . . . . . . . . Recycled Matter . | . . . . . . . . . . . . . . . . Retrieved Matter . | . . . . . . . . . . . . . . . . Retrieved Components . | . . . . . . . . . . . . . . . . Parts Scanalyzed . | . . . . . . . . . . . . . . . . Part Schematics Acquired . | . . . . . . . . . . . . . . . . Parts Damaged . | . . . . . . . . . . . . . . . . Bothacking | -11 -10 -9 -8 -7 -7 -7 -7 -6 -6 -6 -5 -5 -5 -4 -3 ------------ Run | Yrd Mat Mat Mat Fac Gar Fac Gar Fac Was Fac Fac Gar Fac Fac Res Used RIF Installer 3 | . . . . . 1 . 1 . . . . 1 . . . Zone Cloak 1 | . . . . . . . 1 . . . . . . . . Patrol Navigation 1 | . . . . . . . . . . . . 1 . . . Robots Hacked . | . . . . . . . . . . . . . . . . Non-combat . | . . . . . . . . . . . . . . . . Combat . | . . . . . . . . . . . . . . . . Robot Hacks Applied . | . . . . . . . . . . . . . . . . Relay Couplers Released 39 | . . . 2 . 21 . 10 . . . . 4 2 . . Machine Destruction 39 | . . . 2 . 21 . 10 . . . . 4 2 . . Fabnet Peak Effective % . | . . . . . . . . . . . . . . . . Robots Rewired . | . . . . . . . . . . . . . . . . Allies Hacked . | . . . . . . . . . . . . . . . . Hacks Repelled . | . . . . . . . . . . . . . . . . Allies | -11 -10 -9 -8 -7 -7 -7 -7 -6 -6 -6 -5 -5 -5 -4 -3 -------- Run | Yrd Mat Mat Mat Fac Gar Fac Gar Fac Was Fac Fac Gar Fac Fac Res Total Allies 25 | . . . . . 2 . 3 . 18 . . 2 . . . Largest Group 19 | . . . . . 2 2 3 1 19 19 11 2 . . . Highest-Rated Group 711 | . . . . . 142 142 167 62 711 711 454 142 . . . Highest-Rated Ally 80 | . . . . . 80 80 80 62 62 55 50 80 . . . Total Orders . | . . . . . . . . . . . . . . . . Ally Attacks 242 | . . . . . 6 16 6 9 13 88 89 15 . . . Total Damage 7466 | . . . . . 383 513 457 368 374 2010 2830 531 . . . Kills 55 | . . . . . 1 5 4 4 1 18 21 1 . . . Allies Corrupted 3 | . . . . . . . . . . . 3 . . . . Allies Melted 1 | . . . . . . . . . . . 1 . . . . Intel | -11 -10 -9 -8 -7 -7 -7 -7 -6 -6 -6 -5 -5 -5 -4 -3 ------- Run | Yrd Mat Mat Mat Fac Gar Fac Gar Fac Was Fac Fac Gar Fac Fac Res Active Infowar (turns) 12180 | . . 1065 729 825 40 1845 2055 401 456 442 1336 . 1651 1024 311 Sensors 12180 | . . 1065 729 825 40 1845 2055 401 456 442 1336 . 1651 1024 311 Robot Analysis Total . | . . . . . . . . . . . . . . . . Derelict Logs Recovered . | . . . . . . . . . . . . . . . . Drone Launches . | . . . . . . . . . . . . . . . . Drone Recoveries . | . . . . . . . . . . . . . . . . Exploration | -11 -10 -9 -8 -7 -7 -7 -7 -6 -6 -6 -5 -5 -5 -4 -3 ------------- Run | Yrd Mat Mat Mat Fac Gar Fac Gar Fac Was Fac Fac Gar Fac Fac Res Turns Passed 16861 | 29 467 1065 729 825 2472 1995 2055 401 456 442 1647 1285 1656 1024 313 Spaces Moved 6966 | 18 240 502 246 361 858 698 658 212 221 241 787 586 751 470 117 Core . | . . . . . . . . . . . . . . . . Treads 6966 | 18 240 502 246 361 858 698 658 212 221 241 787 586 751 470 117 Legs . | . . . . . . . . . . . . . . . . Wheels . | . . . . . . . . . . . . . . . . Hover . | . . . . . . . . . . . . . . . . Flight . | . . . . . . . . . . . . . . . . Fastest Speed 155 | 160 160 160 160 160 160 160 240 160 160 160 160 155 162 170 160 Average Speed 191 | 160 160 160 212 161 238 235 255 160 160 160 160 161 178 170 172 Slowest Speed 270 | 160 160 160 260 240 240 240 260 160 160 160 160 162 270 170 240 Overloaded Moves . | . . . . . . . . . . . . . . . . Propulsion Burnouts . | . . . . . . . . . . . . . . . . Robots Hopped . | . . . . . . . . . . . . . . . . Potential Cave-ins 4 | . . . . . . 2 . . . . . . . 2 . Cave-ins Triggered 1 | . . . . . . 1 . . . . . . . . . Exploration Rate (%) 40 | 3 49 65 25 11 91 21 94 6 89 17 28 93 34 18 6 Regions Visited 15 Branch Regions . Pre-discovered Areas . | . . . . . . . . . . . . . . . . Known Exits Taken 10 | 1 1 1 1 1 . 1 . . . 1 1 . 1 1 . Unknown Exits Taken . | . . . . . . . . . . . . . . . . Scrap Searched . | . . . . . . . . . . . . . . . . Spaces Dug 84 | . . . . . . 40 . 1 . . 30 . . 9 4 Terrain Destroyed 995 | . . . . 32 73 206 126 4 25 63 96 77 153 87 53 Melee . | . . . . . . . . . . . . . . . . Projectile 169 | . . . . 4 1 45 . 4 4 3 51 2 20 18 17 AOE 826 | . . . . 28 72 161 126 . 21 60 45 75 133 69 36 Terrain Rammed . | . . . . . . . . . . . . . . . . Walls Destroyed . | . . . . . . . . . . . . . . . . Machines Disabled . | . . . . . . . . . . . . . . . . Actions | -11 -10 -9 -8 -7 -7 -7 -7 -6 -6 -6 -5 -5 -5 -4 -3 --------- Run | Yrd Mat Mat Mat Fac Gar Fac Gar Fac Was Fac Fac Gar Fac Fac Res Total 8886 | 19 282 648 360 492 1046 883 877 256 293 275 1022 739 910 611 173 Wait 1023 | . 19 88 59 65 33 98 117 33 58 25 161 62 80 104 21 Move 6951 | 17 239 501 245 360 856 696 657 212 220 240 787 585 750 469 117 Hop . | . . . . . . . . . . . . . . . . Pick Up 16 | . 2 . 1 1 1 . 2 . . . 1 3 5 . . Fast Attach 1 | . . . . . 1 . . . . . . . . . . Attach 30 | . . 1 3 1 2 2 4 2 . . 1 4 8 . 2 Detach 3 | . . . . . 1 . . . . . 1 . . . 1 Swap 37 | . . . 6 5 2 3 5 1 2 . 2 6 1 2 2 Drop 32 | 2 1 . 1 4 2 1 6 . . . 6 2 . 1 6 Fire 747 | . 21 58 45 55 120 81 78 8 13 10 63 77 60 34 24 Melee . | . . . . . . . . . . . . . . . . Ram . | . . . . . . . . . . . . . . . . Kick . | . . . . . . . . . . . . . . . . Crush 9 | . . . . 1 . 1 . . . . . . 6 1 . Escape Stasis 37 | . . . . . 28 1 8 . . . . . . . . Rewire . | . . . . . . . . . . . . . . . . Trap . | . . . . . . . . . . . . . . . . Miscellaneous . | . . . . . . . . . . . . . . . . Route ------- -11/Scrapyard -10/Materials -9/Materials (discovered 2 exits: *Mat / *Min) -8/Materials -7/Factory -7/Garrison (discovered 3 exits: *Fac x3) -7/Factory (discovered 2 exits: *Fac / Gar) -7/Garrison (discovered 3 exits: *Fac x3) -6/Factory (discovered 4 exits: *Fac x4) -6/Waste -6/Factory -5/Factory (discovered 3 exits: Upp x2 / Gar) -5/Garrison (discovered 3 exits: *Fac x3) -5/Factory (discovered 3 exits: *Fac / Upp x2) -4/Factory (discovered 2 exits: *Res / *Upp) -3/Research History --------- Turn | Location | Event 7 | -11/Scrapyard | Identified exit to Materials 7 | -11/Scrapyard | Discovered exit to Materials (range 15) 30 | -11/Scrapyard | Entered Materials 30 | -10/Materials | Evolved 1 slot: Utility x1 290 | -10/Materials | Identified exit to Materials 290 | -10/Materials | Discovered exit to Materials (range 4) 304 | -10/Materials | Build established: Hacker-Mutant 497 | -10/Materials | Entered another Materials area 497 | -9/Materials | Evolved 2 slots: Utility x2 1049 | -9/Materials | Identified exit to Mines 1049 | -9/Materials | Discovered exit to Mines (range 12) 1403 | -9/Materials | Identified exit to Materials 1403 | -9/Materials | Discovered exit to Materials (range 16) 1562 | -9/Materials | Entered another Materials area 1562 | -8/Materials | Evolved 2 slots: Utility x2 1581 | -8/Materials | Identified exit to Garrison 2268 | -8/Materials | Identified exit to Factory 2268 | -8/Materials | Discovered exit to Factory (range 10) 2291 | -8/Materials | Entered Factory 2291 | -7/Factory | Evolved 2 slots: Power x1, Utility x1 2333 | -7/Factory | Identified exit to Garrison 3116 | -7/Factory | Entered Garrison 3222 | -7/Garrison | Triggered checkpoint 3265 | -7/Garrison | Garrison Relay disabled 3495 | -7/Garrison | Destroyed 7 combat bots 3564 | -7/Garrison | Identified exit to Factory 3564 | -7/Garrison | Discovered exit to Factory (range 12) 3708 | -7/Garrison | Garrison Relay disabled 3722 | -7/Garrison | Triggered checkpoint 3760 | -7/Garrison | Garrison Relay disabled 4050 | -7/Garrison | Triggered checkpoint 4326 | -7/Garrison | Installed Relay Interface Framework 4340 | -7/Garrison | Discovered exit to Factory (range 12) 4344 | -7/Garrison | Triggered checkpoint 4376 | -7/Garrison | Garrison Relay disabled 4690 | -7/Garrison | Triggered checkpoint 4694 | -7/Garrison | Garrison Relay disabled 4739 | -7/Garrison | Found embedded Infiltrators 4907 | -7/Garrison | Learned Factory security intel 4956 | -7/Garrison | Triggered checkpoint 5161 | -7/Garrison | Phase Generator disabled 5549 | -7/Garrison | Discovered exit to Factory (range 16) 5588 | -7/Garrison | Entered Factory 5588 | -7/Factory | Accompanied by 2 allies 6388 | -7/Factory | First assault squad dispatched 7260 | -7/Factory | Identified exit to Garrison 7467 | -7/Factory | Identified exit to Factory 7467 | -7/Factory | Discovered exit to Factory (range 12) 7525 | -7/Factory | Crushed by falling debris 7583 | -7/Factory | Entered Garrison 7710 | -7/Garrison | System corruption reached 10% 7813 | -7/Garrison | H-XX Assembler disabled 8105 | -7/Garrison | Garrison Relay disabled 8123 | -7/Garrison | Triggered checkpoint 8251 | -7/Garrison | Triggered checkpoint 8371 | -7/Garrison | Triggered checkpoint 8429 | -7/Garrison | Garrison Relay disabled 8542 | -7/Garrison | Discovered exit to Factory (range 14) 8719 | -7/Garrison | Triggered checkpoint 8754 | -7/Garrison | Found embedded Infiltrators 8795 | -7/Garrison | Triggered checkpoint 8858 | -7/Garrison | Garrison Relay disabled 8903 | -7/Garrison | Discovered exit to Factory (range 8) 8990 | -7/Garrison | Rescued a captive Derelict 9099 | -7/Garrison | Phase Generator disabled 9125 | -7/Garrison | Triggered checkpoint 9224 | -7/Garrison | Discovered exit to Factory (range 8) 9245 | -7/Garrison | Expanded RIF knowledge: Zone Cloak 9560 | -7/Garrison | Discovered exit to Factory (range 43) 9560 | -7/Garrison | Discovered exit to Factory (range 26) 9560 | -7/Garrison | Discovered exit to Factory (range 61) 9638 | -7/Garrison | Entered Factory 9638 | -6/Factory | Accompanied by 1 ally 9638 | -6/Factory | Evolved 2 slots: Propulsion x1, Weapon x1 9700 | -6/Factory | Identified exit to Factory 9700 | -6/Factory | Discovered exit to Factory (range 8) 9923 | -6/Factory | Build established: Hacker-Tank 9988 | -6/Factory | First assault squad dispatched 10039 | -6/Factory | Sucked down chute 10039 | -6/Factory | Entered Waste 10063 | -6/Waste | Spotted C-40 Crusher 10067 | -6/Waste | Destroyed C-40 Crusher 10079 | -6/Waste | 1 allies followed down the chute 10079 | -6/Waste | Spotted C-40 Crusher 10084 | -6/Waste | Spotted C-40 Crusher 10088 | -6/Waste | Destroyed C-40 Crusher 10088 | -6/Waste | Spotted C-40 Crusher 10095 | -6/Waste | Destroyed C-40 Crusher 10100 | -6/Waste | Allies destroyed C-40 Crusher 10125 | -6/Waste | Spotted C-40 Crusher 10126 | -6/Waste | Destroyed C-40 Crusher 10191 | -6/Waste | Spotted C-40 Crusher 10203 | -6/Waste | Destroyed C-40 Crusher 10283 | -6/Waste | Identified exit to Factory 10283 | -6/Waste | Discovered exit to Factory (range 15) 10382 | -6/Waste | Warlord forces began an assault 10495 | -6/Waste | Entered Factory 10495 | -6/Factory | Accompanied by 19 allies 10508 | -6/Factory | Identified exit to DSF 10675 | -6/Factory | Lost 5 allies 10883 | -6/Factory | Discovered exit to Factory (range 16) 10937 | -6/Factory | Entered another Factory area 10937 | -5/Factory | Accompanied by 11 allies 10937 | -5/Factory | Evolved 2 slots: Utility x1, Weapon x1 11515 | -5/Factory | Lost 5 allies 11674 | -5/Factory | Build established: Wizard-Tank 12119 | -5/Factory | Identified exit to Upper Caves 12452 | -5/Factory | Garrison activated, responded to threat 12584 | -5/Factory | Identified exit to Garrison 12584 | -5/Factory | Entered Garrison 12606 | -5/Garrison | Triggered checkpoint 12832 | -5/Garrison | Spotted B-75 Beast 12849 | -5/Garrison | Destroyed B-75 Beast 12868 | -5/Garrison | Triggered checkpoint 12872 | -5/Garrison | Triggered checkpoint 12948 | -5/Garrison | Identified exit to Factory 12948 | -5/Garrison | Discovered exit to Factory (range 10) 13022 | -5/Garrison | Lost 6 parts (2p1n2u1w) 13026 | -5/Garrison | Destroyed 7 combat bots 13146 | -5/Garrison | Triggered checkpoint 13155 | -5/Garrison | Garrison Relay disabled 13179 | -5/Garrison | Spotted B-86 Titan 13195 | -5/Garrison | Destroyed B-86 Titan 13333 | -5/Garrison | Triggered checkpoint 13346 | -5/Garrison | Triggered checkpoint 13375 | -5/Garrison | Destroyed 8 combat bots 13411 | -5/Garrison | Discovered exit to Factory (range 9) 13442 | -5/Garrison | Triggered checkpoint 13481 | -5/Garrison | Found embedded Infiltrators 13620 | -5/Garrison | Triggered checkpoint 13740 | -5/Garrison | Expanded RIF knowledge: Patrol Navigation 13784 | -5/Garrison | Discovered exit to Factory (range 15) 13869 | -5/Garrison | Entered Factory 14169 | -5/Factory | First assault squad dispatched 14261 | -5/Factory | Build established: Hacker-Tank 14475 | -5/Factory | System corruption reached 10% 14527 | -5/Factory | Lost 4 parts (1n2u1w) 14533 | -5/Factory | Destroyed 8 combat bots 14640 | -5/Factory | Destroyed 7 combat bots 14640 | -5/Factory | Lost 3 parts (3u) 15466 | -5/Factory | Identified exit to Factory 15466 | -5/Factory | Discovered exit to Factory (range 15) 15525 | -5/Factory | Entered another Factory area 15525 | -4/Factory | Evolved 2 slots: Propulsion x1, Utility x1 15729 | -4/Factory | Identified exit to Upper Caves 15729 | -4/Factory | Discovered exit to Upper Caves (range 11) 16538 | -4/Factory | Identified exit to Research 16538 | -4/Factory | Discovered exit to Research (range 8) 16549 | -4/Factory | Entered Research 16549 | -3/Research | Evolved 2 slots: Utility x2 16689 | -3/Research | Garrison activated, responded to threat 16731 | -3/Research | Lost 3 parts (2u1w) 16862 | -3/Research | Self-destructed Last Messages --------------- U-05 Engineer builds a Wall. G-67 Veteran destroyed. Chain reaction triggered in Lgt. Ion Engine. K-01 Serf collects debris. U-05 Engineer lays Concrete. P-80 Master destroyed. K-01 Serf collects debris. U-05 Engineer lays Concrete. U-05 Engineer builds a Wall. K-01 Serf collects debris. U-05 Engineer lays Concrete. K-01 Serf collects debris. U-05 Engineer lays Concrete. K-01 Serf collects debris. U-05 Engineer builds a Wall. Adv. Sensor Array destroyed. K-01 Serf collects debris. U-05 Engineer builds a Wall. [Achievement: 30k Club] [Achievement: Torch] Map ----- +----------------------------------------------------+ | ????????????????????????????????# "" # | | ????????????????????????????????# S # | | ???????????????????????????????## "" / | | ???????????????????????????????# "" # | | ????????????????????????????????# "" # | | ????????????????????????????????# % # | | ????????????????????????????????# # | | ????????????????????????????????############## | | ??????????????????????????????????????# | | ??????????????????????????????????????# % | | ??????????????????????????????????????# | | ??????????????????????????????????????# | | ??????????????????????????????????????# ####### | | ??????????????????????????????###?????# # ???? | | ????????????????????????############### # "??? | | ????????????????????????# % % % + ""?? | | ????????????????????????# % %% # """? | | ????????????????????????# % # ? | | ??????????????########### p % # ? | | ??????????????# # p######+######## | | ??????????????# # # ?? ?????? | | ??????????????# # k# ???? #???? | | ??????????????# + # ????????#????#?#?## | | ??????????????# # #???????????????????? | | ??????????????# # #???????????????????? | | ??????????????# #@ #???????????????????? | | ??????????????# # #???????????????????? | | ??????????????## """### #???????????????????? | | ???????????????#"" F""??# #???????????????????? | | ???????????????#""""""??# #???????????????????? | | ???????????????# """" ??# #???????????????????? | | ???????????????##???##?##g #???????????????????? | | ?????????????????????? #g #???????????????????? | | ????????????????????? #k #???????????????????? | | ????????????????????"" ?# #???????????????????? | | ??????????????????""""??#g #???????????????????? | | ??????????????????"""???+ +???????????????????? | | ???????????????????""???" # ??????????????????? | | ????????????????????????" # ?????????????????? | | ????????????????????????" %u#? ?????????????????? | | ???????????????????????? R # ????????????????? | | ???????????????????????? ? ???????????????? | | ???????????????????????? ? ???????????????? | | ???????????????????????? ?????????????????? | | ???????????????????????? ???????????????????? | | ???????????????????????? ?????????????????????? | | ?????????????????????????????????????????????????? | | ?????????????????????????????????????????????????? | | ?????????????????????????????????????????????????? | | ?????????????????????????????????????????????????? | +----------------------------------------------------+ Best States ------------- Heat Dissipation 150 Coolant Potential 100 Energy Generation 48 Energy Capacity 980 Matter Stores 450 Matter Capacity 450 Sight Range 16 Robot Scan Range 16 Terrain Scan Density 10 Power Amplification 20 Base Temperature (-) 200 Armor Coverage 825 Resistance: KI 65 Resistance: TH 35 Resistance: EX 35 Resistance: EM 35 Resistance: I 35 Resistance: S 35 Resistance: P 35 Evasion (%) 40 Core Analysis 8 Recoil Reduction 4 Particle Charging 25 Offensive Hacking 61 Defensive Hacking 14 Item Schematics ----------------- Lgt. Fission Core | -7/Factory | Hacked Robot Schematics ------------------ None Fabricated ------------ Nothing Repaired ---------- Nothing Studied --------- Particle Cannon | -9/Materials | Hacked Imp. Ion Engine | -9/Materials | Hacked Flak Cannon | -8/Materials | Hacked Imp. Deuterium Engine | -7/Factory | Hacked Phase Cannon | -6/Factory | Hacked Lgt. Angular Momentum Engine | -6/Factory | Hacked Lrn. Proton Cannon | -6/Factory | Hacked Missile Launcher | -6/Factory | Hacked Hyb. Deuterium Engine | -6/Factory | Hacked Hvy. Siege Treads | -5/Factory | Hacked Rnf. Antimatter Reactor | -5/Factory | Hacked Micro-nuke Launcher | -5/Factory | Hacked Railgun | -5/Factory | Hacked Lgt. Quantum Reactor | -3/Research | Hacked Alien Tech Used ----------------- None Achievements -------------- 30k Club Backstab Can't Touch This Infiltrator Join The Dark Side Let Me Out Of Here Maybe Next Time I'll Detach My Launcher Oh No You Don't! Resistances Are Futile Torch You Will Be Upgraded Challenges ------------ None Cogshop Purchases (98) ------------------------ Spk. Treads (874) Imp. Treads (874) Spk. Treads (874) Sub. Power Source (699) Imp. Ion Engine (699) Particle Cannon (769) Particle Cannon (769) Cooling System (699) Med. Armor Plating (699) Hvy. Ion Engine (Loot Box) Lrg. Matter Pod (Loot Box) Flak Cannon (Loot Box) Shield Generator (Loot Box) Titanium Leg (Loot Box) Imp. Signal Interpreter (732) Hrd. Medium Armor Plating (686) Hacking Suite (930) Imp. Shield Generator (939) Imp. Cooling System (1064) Imp. Medium Armor Plating (814) Hyb. Deuterium Engine (1183) Imp. Deuterium Engine (1183) Angular Momentum Engine (1708) Adv. Signal Interpreter (872) Adv. Sensor Array (1220) Hacking Suite (855) Imp. Medium Treads (1241) Imp. Medium Treads (1241) Hvy. Plasma Cannon (1159) Cld. Plasma Cannon (1159) Imp. Heavy Armor Plating (1121) Imp. Shield Generator (967) Imp. Medium Armor Plating (1089) Adv. Plasma Rifle (Loot Box) Nuclear Pulse Array (Loot Box) Lrn. Proton Cannon (Loot Box) Drone Bay (Loot Box) Imp. Shield Generator (689) Missile Launcher (871) Imp. Shield Generator (771) Mak. Hacking Suite (782) Corruption Screen (994) System Restoration Module (980) Lyr. Medium Armor Plating (808) Lyr. Medium Armor Plating (808) Spk. Medium Treads (472) Spk. Medium Treads (472) Spk. Medium Treads (472) Lgt. Angular Momentum Engine (1957) Phase Cannon (1289) Phase Cannon (1289) Adv. Hacking Suite (1296) Adv. Shield Generator (995) Imp. Focal Shield (Loot Box) Railgun (Loot Box) Force Rifle (Loot Box) Adv. Thermal Shield (Loot Box) Hvy. Gatling Laser (Loot Box) Cld. Field Propulsion Drive (Loot Box) Exp. Focal Shield (Loot Box) Exp. Actuator Array (Loot Box) Exp. Hacking Suite (3022) Exp. Heat Sink (914) Adv. Cryofiber Web (997) Hrd. Medium Armor Plating (729) Adv. Medium Treads (1584) Hvy. Siege Treads (1718) Adv. Medium Treads (1718) Rnf. Antimatter Reactor (1396) Rnf. Antimatter Reactor (1396) Adv. Shield Generator (1113) Exp. Heat Sink (1027) Micro-nuke Launcher (1413) Hvy. Neutron Cannon (1203) Adv. System Shield (1524) Imp. Hacking Suite (1386) Lyr. Heavy Armor Plating (1376) Adv. Cryofiber Web (1054) Imp. Hacking Suite (1730) Imp. Heavy Treads (1587) Adv. Shield Generator (1112) Adv. Coolant Injector (Loot Box) Enh. Nova Cannon (Loot Box) Enh. Quantum Rifle (Loot Box) Cld. Q-thruster (Loot Box) Lgt. Quantum Reactor (Loot Box) Enh. Hardcell Cannon (Loot Box) Mni. Drone Bay (Loot Box) Thermal Barrier (Loot Box) Power Amplifier (1314) Exp. Signal Interpreter (942) IFF Parser (1314) Adv. Particle Charger (1576) Exp. Shield Generator (3417) Exp. Core Analyzer (1204) Biometal Medium Treads (1379) Hds. Centrium Heavy Treads (2972) Point Singularity Launcher (3292) Game ------ Seed DisruptorWardroneNetwork Manual? 0 Play Time 02:31:12 Cumulative 7.5 hours Start 2025.12.23 @ 11:26:33 End 2025.12.24 @ 15:20:51 Sessions 2 Manual Loads 0 Difficulty Explorer Special Mode AFD2019/Pay2Buy Game No. 10 Rogue 4 Adventurer 0 Explorer 6 Win Type - Total 0 Types 0/0/0/0/0/0/0/0/0/0 Lore% 6 Gallery% 17 Achievement% 18 Wizard Run 0 Options --------- Layout 0 ASCII 0 Keyboard 0 Movement Mouse Keybinds 0 Fullscreen 1 Font 18/SmallcapsGlow Map View 76x50 Zoom Use 0% Tactical HUD 0 Map Filters NONE Filters NONE Steam 1 RUN: 7e3dc4b2-8e7c-43ce-bf84-4e0a36aa57ca